fUSD/lending_fUSD_20260406
["ID","MTS","AMOUNT","RATE_DAILY","PERIOD"]
[419931196,1775515841457,-500.0,0.00010967,2]
[419931197,1775515841467,-1600.0,0.00011049,2]
[419931198,1775515841476,-321.15,0.00011049,2]
[419931199,1775515841485,-1005.3,0.00011083,2]
[419931200,1775515841494,-200.0,0.00011096,2]
[419931201,1775515841504,-1438.09495884,0.00011096,2]
[419931202,1775515841513,-26854.46091885,0.00011099,2]
[419931203,1775515841523,-26854.46091877,0.00011099,2]
[419931204,1775515841532,-26854.46091877,0.00011099,2]
[419931205,1775515841541,-2000.0,0.00011136,2]
[419931206,1775515841551,-1229.6901256,0.00011136,2]
[419931207,1775515841560,-877.452931,0.00011136,2]
[419931208,1775515841569,-2000.0,0.00011136,2]
[419931210,1775515841579,-500.0,0.00011151,2]
[419931211,1775515841588,-261.66,0.00011247,2]
[419931212,1775515841597,-1005.3,0.00011357,2]
[419931213,1775515841606,-2734.08815341,0.00011482,2]
[419931214,1775515841618,-2351.0,0.00011511,2]
[419931215,1775515841627,-321.15,0.00011575,2]
[419931216,1775515841636,-317.16,0.00011585,2]
[419931217,1775515841646,-1005.3,0.00011631,2]
[419931218,1775515841655,-200.0,0.00011644,2]
[419931219,1775515841664,-1491.30447232,0.00011644,2]
[419931220,1775515841673,-1512.47134075,0.00011684,2]
[419931221,1775515841682,-2500.0,0.00011684,2]
[419931222,1775515841692,-26854.46091877,0.00011775,2]
[419931223,1775515841701,-168.8722,0.000118,2]
[419931224,1775515841710,-1005.3,0.00011905,2]
[419931225,1775515841719,-200.0,0.00012,2]
[419931226,1775515841728,-152.0,0.00012021,3]
[419931227,1775515841737,-2224.19,0.00012055,2]
[419931228,1775515841747,-321.15,0.00012101,2]
[419931229,1775515841756,-1005.3,0.00012179,2]
[419931230,1775515841765,-200.0,0.00012192,2]
[419931231,1775515841774,-524.95027006,0.00012192,2]
[419931232,1775515841783,-150.0,0.0001223,2]
[419931233,1775515841793,-150.0,0.0001223,2]
[419931234,1775515841802,-282.9390062,0.0001223,2]
[419931235,1775515841811,-150.00000001,0.0001223,2]
[419931236,1775515841820,-150.4044031,0.0001223,2]
[419931237,1775515841829,-150.0,0.0001223,2]
[419931238,1775515841839,-150.0,0.0001223,2]
[419931239,1775515841848,-150.56974381,0.0001223,2]
[419931240,1775515841857,-164.2153283,0.0001223,2]
[419931241,1775515841866,-150.0,0.0001223,2]
[419931242,1775515841876,-150.0,0.0001223,2]
[419931243,1775515841885,-150.0,0.0001223,2]
[419931244,1775515841894,-3000.0,0.00012232,2]
[419931245,1775515841903,-152.0,0.00012242,4]
[419931246,1775515841912,-1600.0,0.00012276,2]
[419931247,1775515841922,-2833.5,0.00012308,2]
[419931248,1775515841931,-2833.5,0.00012308,2]
[419931249,1775515841940,-2833.5,0.00012308,2]
[419931250,1775515841949,-2833.5,0.00012308,2]
[419931251,1775515841958,-2734.08815341,0.00012366,2]
[419931252,1775515841967,-1005.3,0.00012453,2]
[419931253,1775515841976,-26854.46091877,0.00012461,2]
[419931254,1775515841986,-152.0,0.00012463,5]
[419931255,1775515841995,-250.0,0.00012571,2]
[419931256,1775515842004,-321.15,0.00012628,2]
[419931257,1775515842014,-3292.0,0.00012662,2]
[419931258,1775515842024,-152.0,0.00012684,6]
[419931259,1775515842033,-1005.3798952,0.00012727,2]
[419931260,1775515842042,-151.0,0.00012739,2]
[419931261,1775515842051,-200.0,0.0001274,2]
[419931262,1775515842060,-1478.68924617,0.0001278,2]
[419931263,1775515842070,-348.55866469,0.00012808,2]
[419931264,1775515842079,-160.0,0.00012885,2]
[419931265,1775515842088,-659.560232,0.00012885,2]
[419931266,1775515842097,-1159.120465,0.00012885,2]
[419931267,1775515842107,-160.0,0.00012885,2]
[419931268,1775515842116,-326.494067,0.00012885,2]
[419931269,1775515842125,-492.988134,0.00012885,2]
[419931270,1775515842134,-245.820786,0.00012885,2]
[419931271,1775515842143,-277.513317,0.00012885,2]
[419931272,1775515842152,-160.0,0.00012885,2]
[419931273,1775515842162,-385.077743,0.00012885,2]
[419931274,1775515842171,-610.155486,0.00012885,2]
[419931275,1775515842180,-152.0,0.00012905,7]
[419931276,1775515842190,-501.0,0.00013,2]
[419931277,1775515842199,-150.0,0.0001311,2]
[419931278,1775515842208,-152.0,0.00013126,8]
[419931279,1775515842217,-26854.46091877,0.00013148,2]
[419931280,1775515842226,-321.15,0.00013154,2]
[419931281,1775515842235,-190.1189,0.000132,2]
[419931282,1775515842245,-2734.08815341,0.00013249,2]
[419931283,1775515842254,-200.0,0.00013288,2]
[419931284,1775515842263,-190.697338,0.00013326,2]
[419931285,1775515842273,-160.0,0.00013326,2]
[419931286,1775515842282,-580.790083,0.00013326,2]
[419931287,1775515842291,-1001.580167,0.00013326,2]
[419931288,1775515842300,-152.0,0.00013348,9]
[419931289,1775515842309,-1800.42,0.00013424,2]
[419931290,1775515842319,-3240.0,0.00013425,2]
[419931291,1775515842328,-160.0,0.00013441,2]
[419931292,1775515842338,-1600.0,0.00013504,2]
[419931293,1775515842347,-899.400317,0.00013529,2]
[419931294,1775515842356,-445.219182,0.00013529,2]
[419931295,1775515842365,-525.106013,0.00013529,2]
[419931296,1775515842374,-152.0,0.00013569,10]
[419931297,1775515842383,-500.0,0.00013573,2]
[419931298,1775515842392,-160.39801811,0.00013573,2]
[419931299,1775515842401,-500.0,0.00013573,2]
[419931300,1775515842410,-500.0,0.00013573,2]
[419931301,1775515842419,-4173.95538242,0.00013574,2]
[419931302,1775515842428,-150.0,0.00013589,2]
[419931303,1775515842437,-1084.35002387,0.00013597,3]
[419931304,1775515842447,-500.0,0.00013598,2]
[419931305,1775515842456,-1759822.5641,0.00013598,2]
[419931306,1775515842465,-20822.2023,0.00013674,2]
[419931307,1775515842474,-321.15,0.0001368,2]
[419931308,1775515842483,-1084.35002387,0.00013697,3]
[419931309,1775515842493,-500.0,0.00013698,2]
[419931310,1775515842502,-500.0,0.00013698,2]
[419931311,1775515842510,-500.0,0.00013698,2]
[419931312,1775515842519,-500.0,0.00013698,2]
[419931313,1775515842528,-500.0,0.00013698,2]
[419931314,1775515842537,-500.0,0.00013698,2]
[419931315,1775515842546,-500.0,0.00013698,2]
[419931316,1775515842555,-500.0,0.00013698,2]
[419931317,1775515842564,-500.0,0.00013698,2]
[419931318,1775515842573,-500.0,0.00013698,2]
[419931319,1775515842582,-500.0,0.00013698,2]
[419931320,1775515842591,-500.0,0.00013698,2]
[419931321,1775515842600,-500.0,0.00013698,2]
[419931322,1775515842609,-500.0,0.00013698,2]
[419931323,1775515842619,-500.0,0.00013698,2]
[419931324,1775515842628,-500.0,0.00013698,2]
[419931325,1775515842637,-500.0,0.00013698,2]
[419931326,1775515842646,-500.0,0.00013698,2]
[419931327,1775515842655,-500.0,0.00013698,2]
[419931328,1775515842664,-500.0,0.00013698,2]
[419931329,1775515842674,-500.0,0.00013698,2]
[419931330,1775515842683,-500.0,0.00013698,2]
[419931331,1775515842692,-500.0,0.00013698,2]
[419931332,1775515842701,-500.0,0.00013698,2]
[419931333,1775515842710,-500.0,0.00013698,2]
[419931334,1775515842719,-500.0,0.00013698,2]
[419931335,1775515842728,-500.0,0.00013698,2]
[419931336,1775515842738,-500.0,0.00013698,2]
[419931337,1775515842747,-500.0,0.00013698,2]
[419931338,1775515842756,-637.4,0.00013698,2]
[419931339,1775515842766,-637.4,0.00013698,2]
[419931341,1775515842776,-637.4,0.00013698,2]
[419931343,1775515842785,-637.4,0.00013698,2]
[419931345,1775515842794,-637.4,0.00013698,2]
[419931347,1775515842803,-637.4,0.00013698,2]
[419931348,1775515842812,-637.4,0.00013698,2]
[419931349,1775515842821,-637.4,0.00013698,2]
[419931350,1775515842830,-637.4,0.00013698,2]
[419931351,1775515842840,-637.4,0.00013698,2]
[419931352,1775515842849,-637.4,0.00013698,2]
[419931353,1775515842859,-637.4,0.00013698,2]
[419931354,1775515842868,-637.4,0.00013698,2]
[419931368,1775515843231,-637.4,0.00013698,2]
[419931369,1775515843241,-500.0,0.00013698,2]
[419931370,1775515843252,-500.0,0.00013698,2]
[419931371,1775515843262,-500.0,0.00013698,2]
[419931372,1775515843273,-500.0,0.00013698,2]
[419931373,1775515843283,-500.0,0.00013698,2]
[419931374,1775515843294,-500.0,0.00013698,2]
[419931375,1775515843304,-500.0,0.00013698,2]
[419931376,1775515843314,-500.0,0.00013698,2]
[419931377,1775515843324,-500.0,0.00013698,2]
[419931378,1775515843335,-500.0,0.00013698,2]
[419931379,1775515843345,-500.0,0.00013698,2]
[419931380,1775515843354,-500.0,0.00013698,2]
[419931381,1775515843363,-500.0,0.00013698,2]
[419931382,1775515843373,-500.0,0.00013698,2]
[419931383,1775515843382,-500.0,0.00013698,2]
[419931384,1775515843392,-500.0,0.00013698,2]
[419931385,1775515843401,-500.0,0.00013698,2]
[419931386,1775515843410,-500.0,0.00013698,2]
[419931387,1775515843420,-500.0,0.00013698,2]
[419931388,1775515843430,-500.0,0.00013698,2]
[419931389,1775515843439,-500.0,0.00013698,2]
[419931390,1775515843449,-500.0,0.00013698,2]
[419931391,1775515843458,-500.0,0.00013698,2]
[419931392,1775515843467,-500.0,0.00013698,2]
[419931393,1775515843476,-500.0,0.00013698,2]
[419931394,1775515843486,-500.0,0.00013698,2]
[419931395,1775515843495,-500.0,0.00013698,2]
[419931396,1775515843504,-500.0,0.00013698,2]
[419931397,1775515843514,-500.0,0.00013698,2]
[419931398,1775515843524,-500.0,0.00013698,2]
[419931399,1775515843533,-500.0,0.00013698,2]
[419931400,1775515843543,-500.0,0.00013698,2]
[419931401,1775515843552,-500.0,0.00013698,2]
[419931402,1775515843562,-500.0,0.00013698,2]
[419931403,1775515843571,-500.0,0.00013698,2]
[419931404,1775515843580,-500.0,0.00013698,2]
[419931405,1775515843591,-500.0,0.00013698,2]
[419931406,1775515843600,-502.76097898,0.00013698,2]
[419931407,1775515843609,-500.0,0.00013698,2]
[419931408,1775515843618,-500.0,0.00013698,2]
[419931409,1775515843628,-500.0,0.00013698,2]
[419931410,1775515843637,-500.0,0.00013698,2]
[419931411,1775515843646,-500.0,0.00013698,2]
[419931412,1775515843655,-500.0,0.00013698,2]
[419931413,1775515843664,-500.0,0.00013698,2]
[419931414,1775515843672,-500.0,0.00013698,2]
[419931415,1775515843681,-500.0,0.00013698,2]
[419931416,1775515843691,-500.0,0.00013698,2]
[419931417,1775515843700,-500.0,0.00013698,2]
[419931418,1775515843710,-500.0,0.00013698,2]
[419931419,1775515843719,-500.0,0.00013698,2]
[419931420,1775515843728,-500.0,0.00013698,2]
[419931421,1775515843737,-500.0,0.00013698,2]
[419931422,1775515843747,-500.0,0.00013698,2]
[419931423,1775515843756,-500.0,0.00013698,2]
[419931424,1775515843766,-500.0,0.00013698,2]
[419931425,1775515843776,-500.0,0.00013698,2]
[419931426,1775515843785,-500.0,0.00013698,2]
[419931427,1775515843795,-500.0,0.00013698,2]
[419931428,1775515843804,-597.09699837,0.00013698,2]
[419931429,1775515843813,-500.0,0.00013698,2]
[419931430,1775515843822,-500.0,0.00013698,2]
[419931431,1775515843832,-500.0,0.00013698,2]
[419931432,1775515843840,-500.0,0.00013698,2]
[419931433,1775515843850,-500.0,0.00013698,2]
[419931434,1775515843859,-500.0,0.00013698,2]
[419931435,1775515843868,-500.0,0.00013698,2]
[419931436,1775515843877,-500.0,0.00013698,2]
[419931437,1775515843887,-500.0,0.00013698,2]
[419931438,1775515843896,-500.0,0.00013698,2]
[419931439,1775515843905,-500.0,0.00013698,2]
[419931440,1775515843915,-500.0,0.00013698,2]
[419931441,1775515843924,-500.0,0.00013698,2]
[419931442,1775515843933,-500.0,0.00013698,2]
[419931443,1775515843943,-500.0,0.00013698,2]
[419931444,1775515843952,-500.0,0.00013698,2]
[419931445,1775515843961,-500.0,0.00013698,2]
[419931446,1775515843971,-500.0,0.00013698,2]
[419931447,1775515843981,-500.0,0.00013698,2]
[419931448,1775515843991,-500.0,0.00013698,2]
[419931449,1775515844000,-500.0,0.00013698,2]
[419931450,1775515844010,-629.61248699,0.00013698,2]
[419931451,1775515844020,-500.0,0.00013698,2]
[419931452,1775515844030,-500.0,0.00013698,2]
[419931453,1775515844039,-500.0,0.00013698,2]
[419931454,1775515844049,-500.0,0.00013698,2]
[419931455,1775515844059,-500.0,0.00013698,2]
[419931456,1775515844068,-189.82902191,0.00013698,2]
[419931457,1775515844078,-500.0,0.00013698,2]
[419931458,1775515844087,-500.0,0.00013698,2]
[419931459,1775515844097,-500.0,0.00013698,2]
[419931460,1775515844107,-500.0,0.00013698,2]
[419931461,1775515844117,-500.0,0.00013698,2]
[419931462,1775515844126,-500.0,0.00013698,2]
[419931463,1775515844135,-500.0,0.00013698,2]
[419931464,1775515844145,-500.0,0.00013698,2]
[419931465,1775515844155,-500.0,0.00013698,2]
[419931466,1775515844164,-500.0,0.00013698,2]
[419931467,1775515844174,-500.0,0.00013698,2]
[419931468,1775515844184,-500.0,0.00013698,2]
[419931469,1775515844193,-618.35884444,0.00013698,2]
[419931470,1775515844203,-500.0,0.00013698,2]
[419931471,1775515844213,-500.0,0.00013698,2]
[419931472,1775515844222,-500.0,0.00013698,2]
[419931473,1775515844232,-500.0,0.00013698,2]
[419931474,1775515844242,-500.0,0.00013698,2]
[419931475,1775515844252,-500.0,0.00013698,2]
[419931476,1775515844262,-500.0,0.00013698,2]
[419931477,1775515844272,-500.0,0.00013698,2]
[419931478,1775515844281,-609.59532014,0.00013698,2]
[419931479,1775515844290,-639.79,0.00013698,2]
[419931480,1775515844300,-639.79,0.00013698,2]
[419931481,1775515844309,-639.79,0.00013698,2]
[419931482,1775515844318,-639.79,0.00013698,2]
[419931483,1775515844327,-639.79,0.00013698,2]
[419931484,1775515844337,-639.79,0.00013698,2]
[419931485,1775515844346,-639.79,0.00013698,2]
[419931486,1775515844355,-639.79,0.00013698,2]
[419931487,1775515844364,-639.79,0.00013698,2]
[419931488,1775515844374,-639.79,0.00013698,2]
[419931489,1775515844385,-639.79,0.00013698,2]
[419931490,1775515844394,-639.79,0.00013698,2]
[419931491,1775515844403,-639.79,0.00013698,2]
[419931492,1775515844413,-639.79,0.00013698,2]
[419931493,1775515844422,-500.0,0.00013698,2]
[419931494,1775515844431,-500.0,0.00013698,2]
[419931495,1775515844440,-500.0,0.00013698,2]
[419931496,1775515844450,-500.0,0.00013698,2]
[419931497,1775515844459,-500.0,0.00013698,2]
[419931498,1775515844467,-500.0,0.00013698,2]
[419931499,1775515844476,-500.0,0.00013698,2]
[419931500,1775515844486,-500.0,0.00013698,2]
[419931501,1775515844495,-500.0,0.00013698,2]
[419931502,1775515844504,-500.0,0.00013698,2]
[419931503,1775515844512,-500.0,0.00013698,2]
[419931504,1775515844522,-500.0,0.00013698,2]
[419931505,1775515844531,-500.0,0.00013698,2]
[419931506,1775515844540,-500.0,0.00013698,2]
[419931507,1775515844550,-500.0,0.00013698,2]
[419931508,1775515844559,-500.0,0.00013698,2]
[419931509,1775515844568,-500.0,0.00013698,2]
[419931510,1775515844577,-500.0,0.00013698,2]
[419931511,1775515844587,-500.0,0.00013698,2]
[419931512,1775515844597,-256.00425953,0.00013698,2]
[419931513,1775515844606,-500.0,0.00013698,2]
[419931514,1775515844615,-500.0,0.00013698,2]
[419931515,1775515844625,-500.0,0.00013698,2]
[419931516,1775515844634,-508.61892667,0.00013698,2]
[419931517,1775515844644,-500.0,0.00013698,2]
[419931518,1775515844653,-500.0,0.00013698,2]
[419931519,1775515844664,-500.0,0.00013698,2]
[419931520,1775515844673,-500.0,0.00013698,2]
[419931521,1775515844682,-500.0,0.00013698,2]
[419931522,1775515844691,-266.37798353,0.00013698,2]
[419931523,1775515844700,-500.0,0.00013698,2]
[419931524,1775515844710,-500.0,0.00013698,2]
[419931525,1775515844719,-500.0,0.00013698,2]
[419931526,1775515844729,-500.0,0.00013698,2]
[419931527,1775515844738,-500.0,0.00013698,2]
[419931528,1775515844747,-500.0,0.00013698,2]
[419931529,1775515844756,-228.92,0.00013698,2]
[419931530,1775515844766,-500.0,0.00013698,2]
[419931531,1775515844775,-500.0,0.00013698,2]
[419931532,1775515844785,-500.0,0.00013698,2]
[419931533,1775515844794,-500.0,0.00013698,2]
[419931534,1775515844804,-500.0,0.00013698,2]
[419931535,1775515844814,-500.0,0.00013698,2]
[419931536,1775515844823,-500.0,0.00013698,2]
[419931537,1775515844832,-500.0,0.00013698,2]
[419931538,1775515844842,-348.586408,0.00013698,2]
[419931539,1775515844851,-500.0,0.00013698,2]
[419931540,1775515844861,-500.0,0.00013698,2]
[419931541,1775515844870,-500.0,0.00013698,2]
[419931542,1775515844879,-500.0,0.00013698,2]
[419931543,1775515844889,-500.0,0.00013698,2]
[419931544,1775515844899,-597.32595487,0.00013698,2]
[419931545,1775515844908,-500.0,0.00013698,2]
[419931546,1775515844918,-500.0,0.00013698,2]
[419931547,1775515844927,-500.0,0.00013698,2]
[419931548,1775515844937,-500.0,0.00013698,2]
[419931549,1775515844946,-500.0,0.00013698,2]
[419931550,1775515844956,-500.0,0.00013698,2]
[419931551,1775515844966,-500.0,0.00013698,2]
[419931552,1775515844975,-500.0,0.00013698,2]
[419931553,1775515844984,-500.0,0.00013698,2]
[419931554,1775515844994,-500.0,0.00013698,2]
[419931555,1775515845003,-500.0,0.00013698,2]
[419931556,1775515845012,-500.0,0.00013698,2]
[419931557,1775515845022,-500.0,0.00013698,2]
[419931558,1775515845031,-500.0,0.00013698,2]
[419931559,1775515845041,-500.0,0.00013698,2]
[419931560,1775515845050,-500.0,0.00013698,2]
[419931561,1775515845060,-500.0,0.00013698,2]
[419931562,1775515845069,-500.0,0.00013698,2]
[419931563,1775515845079,-500.0,0.00013698,2]
[419931564,1775515845089,-500.0,0.00013698,2]
[419931565,1775515845098,-500.0,0.00013698,2]
[419931566,1775515845108,-500.0,0.00013698,2]
[419931567,1775515845118,-500.0,0.00013698,2]
[419931568,1775515845128,-500.0,0.00013698,2]
[419931569,1775515845137,-500.0,0.00013698,2]
[419931570,1775515845147,-500.0,0.00013698,2]
[419931571,1775515845156,-500.0,0.00013698,2]
[419931572,1775515845165,-500.0,0.00013698,2]
[419931573,1775515845174,-500.0,0.00013698,2]
[419931574,1775515845183,-500.0,0.00013698,2]
[419931575,1775515845193,-559.50723655,0.00013698,2]
[419931576,1775515845202,-500.0,0.00013698,2]
[419931577,1775515845212,-500.0,0.00013698,2]
[419931578,1775515845221,-500.0,0.00013698,2]
[419931579,1775515845230,-500.0,0.00013698,2]
[419931580,1775515845239,-500.0,0.00013698,2]
[419931581,1775515845248,-500.0,0.00013698,2]
[419931582,1775515845257,-500.0,0.00013698,2]
[419931583,1775515845268,-503.57594394,0.00013698,2]
[419931584,1775515845277,-500.0,0.00013698,2]
[419931585,1775515845287,-500.0,0.00013698,2]
[419931586,1775515845296,-547.42518034,0.00013698,2]
[419931587,1775515845305,-180.22082836,0.00013699,2]
[419931588,1775515845314,-150.0,0.00013699,2]
[419931589,1775515845323,-150.0,0.00013699,2]
[419931590,1775515845333,-150.0,0.00013699,2]
[419931591,1775515845342,-150.0,0.00013699,2]
[419931592,1775515845351,-150.0,0.00013699,2]
[419931593,1775515845360,-150.0,0.00013699,2]
[419931594,1775515845369,-166.66,0.00013699,2]
[419931595,1775515845378,-158.36,0.00013699,2]
[419931596,1775515845387,-500.2985009,0.00013699,2]
[419931597,1775515845396,-500.0,0.00013699,2]
[419931598,1775515845406,-500.0,0.00013699,2]
[419931599,1775515845415,-500.0,0.00013699,2]
[419931600,1775515845424,-623.42048552,0.00013699,2]
[419931601,1775515845433,-500.0,0.00013699,2]
[419931602,1775515845442,-500.0,0.00013699,2]
[419931603,1775515845451,-500.0,0.00013699,2]
[419931604,1775515845461,-500.0,0.00013699,2]
[419931605,1775515845470,-500.0,0.00013699,2]
[419931606,1775515845479,-500.0,0.00013699,2]
[419931607,1775515845488,-500.0,0.00013699,2]
[419931608,1775515845497,-500.0,0.00013699,2]
[419931609,1775515845507,-501.7767113,0.00013699,2]
[419931610,1775515845516,-500.25654321,0.00013699,2]
[419931611,1775515845527,-500.90594274,0.00013699,2]
[419931612,1775515845536,-500.0,0.00013699,2]
[419931613,1775515845546,-500.0,0.00013699,2]
[419931614,1775515845555,-500.0,0.00013699,2]
[419931615,1775515845564,-500.0,0.00013699,2]
[419931616,1775515845574,-502.32819122,0.00013699,2]
[419931617,1775515845583,-500.0,0.00013699,2]
[419931618,1775515845593,-500.0,0.00013699,2]
[419931619,1775515845603,-500.0,0.00013699,2]
[419931620,1775515845613,-500.0,0.00013699,2]
[419931621,1775515845627,-500.51473043,0.00013699,2]
[419931622,1775515845637,-286.46237648,0.00013699,2]
[419931623,1775515845647,-500.0,0.00013699,2]
[419931624,1775515845656,-500.0,0.00013699,2]
[419931625,1775515845666,-500.0,0.00013699,2]
[419931626,1775515845675,-503.55252603,0.00013699,2]
[419931627,1775515845685,-500.0,0.00013699,2]
[419931628,1775515845694,-288.13754842,0.00013699,2]
[419931629,1775515845703,-500.0,0.00013699,2]
[419931630,1775515845715,-500.0,0.00013699,2]
[419931632,1775515845724,-500.48595489,0.00013699,2]
[419931633,1775515845733,-163.81595005,0.00013699,2]
[419931635,1775515845743,-337.84455229,0.00013699,2]
[419931636,1775515845752,-500.0,0.00013699,2]
[419931637,1775515845761,-500.0,0.00013699,2]
[419931638,1775515845771,-500.0,0.00013699,2]
[419931639,1775515845781,-500.0,0.00013699,2]
[419931640,1775515845790,-556.68829625,0.00013699,2]
[419931641,1775515845799,-500.14142066,0.00013699,2]
[419931642,1775515845809,-164.37135814,0.00013699,2]
[419931643,1775515845819,-153.23,0.00013699,2]
[419931644,1775515845828,-152.0,0.0001379,11]
[419931645,1775515845838,-26854.46091877,0.00013834,2]
[419931646,1775515845847,-200.0,0.00013836,2]
[419931647,1775515845857,-501.0,0.00013863,2]
[419931648,1775515845866,-501.0,0.00013918,2]
[419931649,1775515845876,-4609.0,0.00013928,2]
[419931650,1775515845885,-166.66,0.00013948,2]
[419931651,1775515845895,-150.0,0.00013973,2]
[419931652,1775515845905,-150.0,0.00013973,2]
[419931653,1775515845914,-150.0,0.00013973,2]
[419931654,1775515845924,-150.0,0.00013973,2]
[419931655,1775515845934,-150.0,0.00013973,2]
[419931656,1775515845943,-261.66,0.00013975,2]
[419931657,1775515845953,-791.986477,0.00013992,7]
[419931658,1775515845962,-200.0,0.00014,2]
[419931659,1775515845972,-855.85192254,0.00014006,2]
[419931660,1775515845982,-152.0,0.00014011,12]
[419931661,1775515845991,-155.05158054,0.00014033,2]
[419931662,1775515846001,-1300.0,0.00014082,2]
[419931663,1775515846010,-3000.0,0.00014082,2]
[419931664,1775515846020,-985.59,0.00014097,2]
[419931665,1775515846029,-1000.0,0.00014121,2]
[419931666,1775515846038,-2734.08815341,0.00014133,2]
[419931667,1775515846047,-785.79,0.00014151,2]
[419931668,1775515846056,-166.66,0.00014197,2]
[419931669,1775515846066,-321.15,0.00014206,2]
[419931670,1775515846075,-152.0,0.00014232,13]
[419931671,1775515846084,-150.0,0.00014247,2]
[419931672,1775515846093,-150.0,0.00014247,2]
[419931673,1775515846103,-150.0,0.00014247,2]
[419931674,1775515846112,-150.0,0.00014247,2]
[419931675,1775515846122,-150.0,0.00014247,2]
[419931676,1775515846131,-500.0,0.00014247,2]
[419931677,1775515846140,-1038.69136306,0.00014247,2]
[419931678,1775515846149,-1002.38345073,0.00014247,2]
[419931679,1775515846158,-1000.0,0.00014247,2]
[419931680,1775515846167,-500.0,0.00014247,2]
[419931681,1775515846175,-1000.0,0.00014247,2]
[419931682,1775515846184,-1000.0,0.00014247,2]
[419931683,1775515846193,-1000.0,0.00014247,2]
[419931684,1775515846202,-1000.0,0.00014247,2]
[419931685,1775515846211,-1000.0,0.00014247,2]
[419931686,1775515846221,-1000.0,0.00014247,2]
[419931687,1775515846230,-500.96410238,0.00014247,2]
[419931688,1775515846239,-1000.0,0.00014247,2]
[419931689,1775515846248,-501.47117302,0.00014247,2]
[419931690,1775515846257,-610.88201317,0.00014247,2]
[419931691,1775515846266,-1000.0,0.00014247,2]
[419931692,1775515846275,-505.26388851,0.00014247,2]
[419931693,1775515846285,-1000.0,0.00014247,2]
[419931694,1775515846294,-1000.0,0.00014247,2]
[419931695,1775515846304,-1110.42839416,0.00014247,2]
[419931696,1775515846313,-500.0,0.00014247,2]
[419931697,1775515846322,-500.84806746,0.00014247,2]
[419931698,1775515846331,-1000.0,0.00014247,2]
[419931699,1775515846340,-985.59,0.0001437,2]
[419931700,1775515846349,-200.0,0.00014384,2]
[419931701,1775515846358,-2811.0,0.000144,2]
[419931702,1775515846367,-2811.0,0.000144,2]
[419931703,1775515846375,-162.0,0.000144,2]
[419931704,1775515846386,-2811.0,0.000144,2]
[419931705,1775515846395,-1573.0,0.000144,2]
[419931706,1775515846404,-351.0,0.000144,4]
[419931707,1775515846412,-661.30319743,0.000144,4]
[419931708,1775515846422,-317.16,0.00014425,2]
[419931709,1775515846432,-785.79,0.00014425,2]
[419931710,1775515846441,-166.66,0.00014446,2]
[419931711,1775515846449,-152.0,0.00014453,14]
[419931712,1775515846458,-26854.46091877,0.00014521,2]
[419931713,1775515846467,-214.0387,0.000146,2]
[419931714,1775515846476,-985.59,0.00014644,2]
[419931715,1775515846485,-500.0,0.00014658,2]